fUSD/lending_fUSD_20250610
["ID","MTS","AMOUNT","RATE_DAILY","PERIOD"]
[365271299,1749570667478,-571.70299592,0.00019,2]
[365271300,1749570667489,-250.0,0.00019,2]
[365271301,1749570667499,-189.12,0.00019,7]
[365271302,1749570667509,-390.92406,0.00019,2]
[365271303,1749570667520,-390.92406,0.00019,2]
[365271304,1749570667529,-390.92406,0.00019,2]
[365271305,1749570667538,-390.92406,0.00019,2]
[365271306,1749570667548,-1094.0491748,0.00019003,2]
[365271307,1749570667558,-169.10759909,0.00019014,2]
[365271308,1749570667568,-642.66,0.00019068,2]
[365271309,1749570667577,-983.05,0.00019068,2]
[365271310,1749570667586,-490.0,0.00019068,2]
[365271311,1749570667595,-980.31,0.00019068,2]
[365271312,1749570667606,-490.0,0.00019068,2]
[365271313,1749570667615,-490.0,0.00019068,2]
[365271314,1749570667625,-2100.58,0.00019068,2]
[365271315,1749570667634,-218.07664816,0.00019068,2]
[365271316,1749570667644,-490.0,0.00019068,2]
[365271317,1749570667654,-612.37,0.00019068,2]
[365271318,1749570667663,-618.576472,0.00019068,2]
[365271319,1749570667673,-490.0,0.00019068,2]
[365271320,1749570667682,-520.05,0.00019068,2]
[365271321,1749570667692,-1277.47,0.00019068,2]
[365271322,1749570667703,-2101.06,0.00019068,2]
[365271323,1749570667713,-1048.02,0.00019068,2]
[365271324,1749570667722,-490.0,0.00019068,2]
[365271325,1749570667732,-9735.04,0.00019068,2]
[365271326,1749570667742,-490.0,0.00019068,2]
[365271327,1749570667751,-1958.36,0.00019068,2]
[365271328,1749570667760,-505.2,0.00019068,2]
[365271329,1749570667770,-1094.0491748,0.00019072,2]
[365271330,1749570667780,-1094.0491748,0.00019141,2]
[365271331,1749570667789,-7567.48734451,0.00019165,2]
[365271332,1749570667849,-490.0,0.00016438,2]
[365271333,1749570667859,-298.46707076,0.000179,2]
[365271334,1749570667868,-163.91602679,0.000189,3]
[365271335,1749570667878,-2761.99534993,0.00019165,2]
[365271336,1749570667891,-535.70678768,0.00019165,2]
[365271337,1749570667907,-490.0,0.00016602,2]
[365271338,1749570667916,-1481.93616101,0.00019165,2]
[365271339,1749570668092,-14582.18174546,0.00019165,2]
[365271340,1749570669479,-16717.83261131,0.00019165,2]
[365271341,1749570669489,-24455.8362792,0.00019165,2]
[365271342,1749570669499,-2474.1710114,0.00019165,2]
[365271343,1749570669508,-2707.33,0.00019178,2]
[365271344,1749570669519,-2707.33,0.00019178,2]
[365271345,1749570669528,-2707.33,0.00019178,2]
[365271346,1749570669538,-2707.33,0.00019178,2]
[365271347,1749570669548,-2707.33,0.00019178,2]
[365271348,1749570669559,-2707.33,0.00019178,2]
[365271349,1749570669569,-2707.33,0.00019178,2]
[365271350,1749570669578,-2707.33,0.00019178,2]
[365271351,1749570669589,-2707.33,0.00019178,2]
[365271352,1749570669599,-2707.33,0.00019178,2]
[365271353,1749570669608,-2707.33,0.00019178,2]
[365271354,1749570669618,-2707.33,0.00019178,2]
[365271355,1749570669628,-2707.33,0.00019178,2]
[365271356,1749570669639,-2707.33,0.00019178,2]
[365271357,1749570669649,-2707.33,0.00019178,2]
[365271358,1749570669659,-2707.33,0.00019178,2]
[365271359,1749570669668,-2707.33,0.00019178,2]
[365271360,1749570669678,-390.92406,0.00019178,2]
[365271361,1749570669688,-390.92406,0.00019178,2]
[365271362,1749570669698,-390.92406,0.00019178,2]
[365271363,1749570669708,-390.92406,0.00019178,2]
[365271364,1749570669718,-150.0,0.00019178,2]
[365271365,1749570669728,-563.97928574,0.00019178,2]
[365271366,1749570669738,-1694.07409314,0.00019178,2]
[365271367,1749570669748,-1694.07409314,0.00019178,2]
[365271368,1749570669758,-1694.07409314,0.00019178,2]
[365271369,1749570669768,-1694.07409314,0.00019178,2]
[365271370,1749570669778,-1694.07409314,0.00019178,2]
[365271371,1749570669788,-1694.07409314,0.00019178,2]
[365271372,1749570669799,-1694.07409314,0.00019178,2]
[365271373,1749570669809,-1694.07409314,0.00019178,2]
[365271374,1749570669818,-1694.07409314,0.00019178,2]
[365271375,1749570669828,-1694.07409314,0.00019178,2]
[365271376,1749570669837,-1694.07409314,0.00019178,2]
[365271377,1749570669848,-1694.07409314,0.00019178,2]
[365271378,1749570669858,-1694.07409314,0.00019178,2]
[365271379,1749570669868,-1694.07409314,0.00019178,2]
[365271380,1749570669878,-1694.07409314,0.00019178,2]
[365271381,1749570669888,-1694.07409314,0.00019178,2]
[365271382,1749570669901,-1694.07409314,0.00019178,2]
[365271383,1749570669911,-1694.07409314,0.00019178,2]
[365271384,1749570669921,-1694.07409314,0.00019178,2]
[365271385,1749570669932,-1694.07409314,0.00019178,2]
[365271386,1749570669942,-1694.07409314,0.00019178,2]
[365271387,1749570669953,-1694.07409314,0.00019178,2]
[365271388,1749570669963,-1694.07409314,0.00019178,2]
[365271389,1749570669974,-1694.07409314,0.00019178,2]
[365271390,1749570669984,-1694.07409314,0.00019178,2]
[365271391,1749570669994,-1694.07409314,0.00019178,2]
[365271392,1749570670004,-1694.07409314,0.00019178,2]
[365271393,1749570670013,-1694.07409314,0.00019178,2]
[365271394,1749570670023,-1694.07409314,0.00019178,2]
[365271395,1749570670032,-1694.07409314,0.00019178,2]
[365271396,1749570670041,-1694.07409314,0.00019178,2]
[365271397,1749570670051,-1694.07409314,0.00019178,2]
[365271398,1749570670061,-1694.07409314,0.00019178,2]
[365271399,1749570670070,-1694.07409314,0.00019178,2]
[365271400,1749570670080,-1694.07409314,0.00019178,2]
[365271401,1749570670090,-1694.07409314,0.00019178,2]
[365271402,1749570670100,-1694.07409314,0.00019178,2]
[365271403,1749570670110,-1694.07409314,0.00019178,2]
[365271404,1749570670271,-1694.07409314,0.00019178,2]
[365271405,1749570670281,-1694.07409314,0.00019178,2]
[365271406,1749570670292,-1694.07409314,0.00019178,2]
[365271407,1749570670302,-1694.07409314,0.00019178,2]
[365271408,1749570670313,-1694.07409314,0.00019178,2]
[365271409,1749570670322,-1694.07409314,0.00019178,2]
[365271410,1749570670332,-1694.07409314,0.00019178,2]
[365271411,1749570670342,-1694.07409314,0.00019178,2]
[365271412,1749570670352,-1694.07409314,0.00019178,2]
[365271413,1749570670361,-1694.07409314,0.00019178,2]
[365271414,1749570670371,-1694.07409314,0.00019178,2]
[365271415,1749570670381,-1694.07409314,0.00019178,2]
[365271416,1749570670391,-1694.07409314,0.00019178,2]
[365271417,1749570670400,-1694.07409314,0.00019178,2]
[365271418,1749570670410,-1694.07409314,0.00019178,2]
[365271419,1749570670420,-1694.07409314,0.00019178,2]
[365271420,1749570670430,-1694.07409314,0.00019178,2]
[365271421,1749570670441,-1694.07409314,0.00019178,2]
[365271422,1749570670451,-1694.07409314,0.00019178,2]
[365271423,1749570670461,-151.0,0.00019178,2]
[365271424,1749570670471,-151.0,0.00019178,2]
[365271425,1749570670483,-151.0,0.00019178,2]
[365271426,1749570670493,-151.0,0.00019178,2]
[365271427,1749570670503,-151.0,0.00019178,2]
[365271428,1749570670512,-1000.0,0.00019178,2]
[365271429,1749570670522,-1000.0,0.00019178,2]
[365271430,1749570670532,-1000.0,0.00019178,2]
[365271431,1749570670541,-1000.0,0.00019178,2]
[365271432,1749570670551,-1000.0,0.00019178,2]
[365271433,1749570670561,-1000.0,0.00019178,2]
[365271434,1749570670572,-1000.0,0.00019178,2]
[365271435,1749570670582,-1000.0,0.00019178,2]
[365271436,1749570670591,-1000.0,0.00019178,2]
[365271437,1749570670601,-1000.0,0.00019178,2]
[365271438,1749570670610,-1000.0,0.00019178,2]
[365271439,1749570670620,-1000.0,0.00019178,2]
[365271440,1749570670630,-1000.0,0.00019178,2]
[365271441,1749570670639,-1000.0,0.00019178,2]
[365271442,1749570670650,-1000.0,0.00019178,2]
[365271443,1749570670659,-1000.0,0.00019178,2]
[365271444,1749570670669,-1000.0,0.00019178,2]
[365271445,1749570670678,-1000.0,0.00019178,2]
[365271446,1749570670688,-1000.0,0.00019178,2]
[365271447,1749570670697,-1000.0,0.00019178,2]
[365271448,1749570670709,-1000.0,0.00019178,2]
[365271449,1749570670719,-1000.0,0.00019178,2]
[365271450,1749570670728,-1000.0,0.00019178,2]
[365271451,1749570670738,-1000.0,0.00019178,2]
[365271452,1749570670747,-1000.0,0.00019178,2]
[365271453,1749570670756,-1000.0,0.00019178,2]
[365271454,1749570670765,-1000.0,0.00019178,2]
[365271455,1749570670775,-1000.0,0.00019178,2]
[365271456,1749570670784,-1000.0,0.00019178,2]
[365271457,1749570670793,-1000.0,0.00019178,2]
[365271458,1749570670802,-1000.0,0.00019178,2]
[365271459,1749570670812,-1000.0,0.00019178,2]
[365271460,1749570670822,-1000.0,0.00019178,2]
[365271461,1749570670832,-1000.0,0.00019178,2]
[365271462,1749570670842,-1000.0,0.00019178,2]
[365271463,1749570670851,-1000.0,0.00019178,2]
[365271464,1749570670861,-1000.0,0.00019178,2]
[365271465,1749570670870,-1000.0,0.00019178,2]
[365271466,1749570670880,-1000.0,0.00019178,2]
[365271467,1749570670890,-1000.0,0.00019178,2]
[365271468,1749570670900,-869.0,0.00019178,2]
[365271469,1749570670909,-270.08,0.00019178,2]
[365271470,1749570670919,-234.0,0.00019198,6]
[365271471,1749570670928,-18590.21,0.000192,2]
[365271472,1749570670938,-150.0,0.00019205,2]
[365271473,1749570670948,-182.09053638,0.00019205,2]
[365271474,1749570670958,-169.10759909,0.00019205,2]
[365271475,1749570670967,-182.09053638,0.00019205,2]
[365271476,1749570670977,-1094.0491748,0.0001921,2]
[365271477,1749570670987,-642.66,0.00019232,2]
[365271478,1749570670996,-983.05,0.00019232,2]
[365271479,1749570671005,-490.0,0.00019232,2]
[365271480,1749570671015,-980.31,0.00019232,2]
[365271481,1749570671024,-490.0,0.00019232,2]
[365271482,1749570671033,-490.0,0.00019232,2]
[365271483,1749570671043,-2100.58,0.00019232,2]
[365271484,1749570671052,-490.0,0.00019232,2]
[365271485,1749570671061,-612.37,0.00019232,2]
[365271486,1749570671070,-604.68,0.00019232,2]
[365271487,1749570671080,-520.05,0.00019232,2]
[365271488,1749570671089,-1277.47,0.00019232,2]
[365271489,1749570671099,-2101.06,0.00019232,2]
[365271490,1749570671108,-102.95961638,0.00019232,2]
[365271491,1749570671120,-2170.0,0.00019232,2]
[365271492,1749570671131,-434.37038362,0.00019232,2]
[365271493,1749570671141,-559.73961638,0.00019232,2]
[365271494,1749570671965,-488.28038362,0.00019232,2]
[365271495,1749570671974,-490.0,0.00019232,2]
[365271496,1749570671984,-9735.04,0.00019232,2]
[365271497,1749570671993,-490.0,0.00019232,2]
[365271498,1749570672003,-1958.36,0.00019232,2]
[365271499,1749570672012,-505.2,0.00019232,2]
[365271500,1749570672021,-150.0,0.00019233,2]
[365271501,1749570672031,-309.77074437,0.00019233,2]
[365271502,1749570672040,-150.0,0.0001926,2]
[365271503,1749570672049,-526.8258132,0.00019266,2]
[365271504,1749570672059,-1094.0491748,0.00019279,2]
[365271505,1749570672068,-1000.0,0.00019287,2]
[365271506,1749570672077,-252.89912974,0.00019288,2]
[365271507,1749570672086,-152.0,0.00019295,7]
[365271508,1749570672096,-278.05609054,0.00019298,2]
[365271509,1749570672106,-652.76,0.00019308,2]
[365271510,1749570672114,-980.94485654,0.00019328,2]
[365271511,1749570672124,-162.380719,0.0001933,2]
[365271512,1749570672133,-223.0315306,0.0001933,2]
[365271513,1749570672143,-1037.0,0.00019331,2]
[365271514,1749570672153,-30018.08116402,0.00019342,2]
[365271515,1749570672162,-1000.0,0.00019344,2]
[365271516,1749570672172,-1094.0491748,0.00019348,2]
[365271517,1749570672182,-1000.0,0.00019387,2]
[365271518,1749570672191,-642.66,0.00019397,2]
[365271519,1749570672203,-983.05,0.00019397,2]
[365271520,1749570672212,-490.0,0.00019397,2]
[365271521,1749570672222,-980.31,0.00019397,2]
[365271522,1749570672231,-490.0,0.00019397,2]
[365271523,1749570672241,-490.0,0.00019397,2]
[365271524,1749570672251,-2100.58,0.00019397,2]
[365271525,1749570672262,-490.0,0.00019397,2]
[365271526,1749570672271,-612.37,0.00019397,2]
[365271527,1749570672281,-520.05,0.00019397,2]
[365271528,1749570672291,-1277.47,0.00019397,2]
[365271529,1749570672301,-2101.06,0.00019397,2]
[365271530,1749570672311,-2707.33,0.00019397,2]
[365271531,1749570672320,-1048.02,0.00019397,2]
[365271532,1749570672329,-490.0,0.00019397,2]
[365271533,1749570672338,-9735.04,0.00019397,2]
[365271534,1749570672347,-390.92406,0.00019397,2]
[365271535,1749570672357,-390.9240525,0.00019397,2]
[365271536,1749570672367,-490.0,0.00019397,2]
[365271537,1749570672376,-1958.36,0.00019397,2]
[365271538,1749570672386,-505.2,0.00019397,2]
[365271539,1749570672395,-1094.0491748,0.00019417,2]
[365271540,1749570672405,-182.09053638,0.00019425,2]
[365271541,1749570672415,-169.10759909,0.00019425,2]
[365271542,1749570672425,-182.09053638,0.00019425,2]
[365271543,1749570672435,-150.0,0.00019426,2]
[365271544,1749570672445,-1000.0,0.00019453,2]
[365271545,1749570672455,-1000.0,0.00019468,2]
[365271546,1749570672464,-500.0,0.00019478,2]
[365271547,1749570672474,-1094.0491748,0.00019486,2]
[365271548,1749570672487,-400.0,0.000195,7]
[365271549,1749570672497,-2629.738163,0.00019508,2]
[365271550,1749570672507,-545.91235564,0.00019521,2]
[365271551,1749570672516,-1000.0,0.00019521,2]
[365271552,1749570672526,-500.0,0.00019521,2]
[365271553,1749570672536,-500.0,0.00019521,2]
[365271554,1749570672545,-500.0,0.00019521,2]
[365271555,1749570672555,-500.0,0.00019521,2]
[365271556,1749570672565,-500.0,0.00019521,2]
[365271557,1749570672575,-500.0,0.00019521,2]
[365271558,1749570672585,-500.0,0.00019521,2]
[365271559,1749570672594,-500.0,0.00019521,2]
[365271560,1749570672605,-500.0,0.00019521,2]
[365271561,1749570672615,-500.0,0.00019521,2]
[365271562,1749570672625,-500.0,0.00019521,2]
[365271563,1749570672634,-500.0,0.00019521,2]
[365271564,1749570672645,-500.0,0.00019521,2]
[365271565,1749570672654,-500.0,0.00019521,2]
[365271566,1749570672712,-500.0,0.00019521,2]
[365271567,1749570672722,-500.0,0.00019521,2]
[365271568,1749570672733,-500.0,0.00019521,2]
[365271569,1749570672742,-500.0,0.00019521,2]
[365271570,1749570672752,-500.0,0.00019521,2]
[365271571,1749570672761,-500.0,0.00019521,2]
[365271572,1749570672771,-500.0,0.00019521,2]
[365271573,1749570672782,-500.0,0.00019521,2]
[365271574,1749570672791,-500.0,0.00019521,2]
[365271575,1749570672800,-509.0,0.00019521,2]
[365271576,1749570672810,-500.0,0.00019521,2]
[365271577,1749570672819,-500.0,0.00019521,2]
[365271578,1749570672829,-500.0,0.00019521,2]
[365271579,1749570672839,-992.0,0.00019521,2]
[365271580,1749570672849,-282.0,0.00019522,2]
[365271581,1749570672859,-282.0,0.00019553,2]
[365271582,1749570672868,-1094.0491748,0.00019555,2]
[365271583,1749570672879,-642.66,0.00019561,2]
[365271584,1749570672889,-983.05,0.00019561,2]
[365271585,1749570672898,-490.0,0.00019561,2]
[365271586,1749570672907,-980.31,0.00019561,2]
[365271587,1749570672917,-490.0,0.00019561,2]
[365271588,1749570672926,-490.0,0.00019561,2]
[365271589,1749570672936,-2100.58,0.00019561,2]
[365271590,1749570672946,-490.0,0.00019561,2]
[365271591,1749570672956,-612.37,0.00019561,2]
[365271592,1749570672965,-520.05,0.00019561,2]
[365271593,1749570672974,-1277.47,0.00019561,2]
[365271594,1749570672984,-2101.06,0.00019561,2]
[365271595,1749570672994,-2707.33,0.00019561,2]
[365271596,1749570673003,-1048.02,0.00019561,2]
[365271597,1749570673012,-608.09,0.00019561,2]
[365271598,1749570673022,-9735.04,0.00019561,2]
[365271599,1749570673031,-490.0,0.00019561,2]
[365271600,1749570673041,-1958.36,0.00019561,2]
[365271601,1749570673050,-505.2,0.00019561,2]
[365271602,1749570673060,-309.77074437,0.00019567,2]
[365271603,1749570673069,-1048.18670821,0.00019599,2]
[365271604,1749570673078,-1049.42551646,0.00019599,2]
[365271605,1749570673088,-1098.27024822,0.00019599,2]
[365271606,1749570673097,-519.37153454,0.00019599,2]
[365271607,1749570673480,254.21,0.00015785,2]
[365271608,1749570673603,284.0,0.0002465,120]
[365271609,1749570673727,1610.0,0.0002465,120]
[365271610,1749570673826,525.0,0.0002465,120]
[365271611,1749570674606,203.0,0.00015611,2]
[365271612,1749570720273,919.0,0.0002465,120]
[365271613,1749570721061,1157.0,0.0002465,120]
[365271614,1749570969602,774.18,0.00015131,2]
[365271615,1749571064675,1003.67876245,0.00016,2]
[365271616,1749571076938,800.0,0.00015068,2]
[365271617,1749571090636,1000.0,0.00024,120]
[365271618,1749571091408,1000.0,0.00024,120]
[365271619,1749571164911,2141.0958385,0.0002465,120]
[365271621,1749571178133,298.04,0.00013699,2]
[365271622,1749571231461,150.0,0.00021173,120]
[365271627,1749571410555,150.0,0.00020544,120]
[365271628,1749571470757,150.0,0.00023766,120]
[365271629,1749571528938,1000.0,0.00024658,120]
[365271630,1749571531562,150.0,0.00023161,120]
[365271631,1749571559479,3058.96226747,0.00016,2]
[365271632,1749571559503,1043.09773253,0.00016,2]
[365271633,1749571608715,500.0,0.00024658,120]
[365271634,1749571618566,500.0,0.0002,120]
[365271635,1749571637320,547.57,0.00019205,30]
[365271636,1749571639115,1000.0,0.00016,2]
[365271637,1749571653862,500.1450568,0.00016,2]
[365271638,1749571710598,150.0,0.00021282,120]
[365271639,1749571715176,1000.0,0.00024657,120]
[365271640,1749571782196,215.0,0.00015646,2]
[365271648,1749571832452,-215.0,0.00016094,2]
[365271649,1749571832462,-300.0,0.00016129,2]
[365271650,1749571832473,-412.61514,0.00016164,2]
[365271651,1749571832680,-87.38486,0.00016164,2]
[365271652,1749571832690,-300.0,0.00016166,2]
[365271653,1749571832699,-300.0,0.00016168,2]
[365271654,1749571832709,-250.0,0.00016301,2]
[365271655,1749571832719,-276.54553051,0.00016328,2]
[365271656,1749571832728,-151.0,0.00016428,2]
[365271657,1749571832737,-151.0,0.00016428,2]
[365271658,1749571832747,-300.0,0.00016437,2]
[365271659,1749571832756,-221.0,0.00016437,2]
[365271661,1749571832765,-300.0,0.00016437,2]
[365271663,1749571832774,-1200.0,0.00016437,2]
[365271665,1749571832784,-480.0,0.00016438,2]
[365271667,1749571832793,-466.86513775,0.00016438,2]
[365271669,1749571832803,-460.0,0.00016438,2]
[365271671,1749571832812,-490.0,0.00016438,2]
[365271673,1749571832821,-490.0,0.00016438,2]
[365271674,1749571832831,-465.37,0.00016438,2]
[365271675,1749571832840,-480.0,0.00016438,2]
[365271676,1749571832850,-480.0,0.00016438,2]
[365271677,1749571832859,-490.0,0.00016438,2]
[365271678,1749571832869,-490.0,0.00016438,2]
[365271679,1749571832879,-560.0,0.00016438,2]
[365271680,1749571832893,-490.0,0.00016438,2]
[365271681,1749571832903,-490.0,0.00016438,2]
[365271682,1749571832912,-490.0,0.00016438,2]
[365271683,1749571832923,-477.42338525,0.00016438,2]
[365271684,1749571832933,-489.34545351,0.00016438,2]
[365271685,1749571832943,-470.0,0.00016438,2]
[365271686,1749571832952,-491.22299461,0.00016438,2]
[365271687,1749571832963,-490.0,0.00016438,2]
[365271688,1749571832977,-490.0,0.00016438,2]
[365271689,1749571832987,-490.0,0.00016438,2]
[365271690,1749571832997,-565.93,0.00016438,2]
[365271691,1749571833007,-490.0,0.00016438,2]
[365271692,1749571833017,-490.0,0.00016438,2]
[365271693,1749571833027,-490.0,0.00016438,2]
[365271694,1749571833038,-480.0,0.00016438,2]
[365271695,1749571833048,-490.0,0.00016438,2]
[365271696,1749571833060,-490.0,0.00016438,2]
[365271697,1749571833070,-172.03,0.00016438,2]
[365271698,1749571833081,-490.0,0.00016438,2]
[365271699,1749571833092,-478.50815936,0.00016438,2]
[365271700,1749571833103,-460.0,0.00016438,2]
[365271701,1749571833113,-392.59686136,0.00016438,2]
[365271702,1749571833124,-490.0,0.00016438,2]
[365271703,1749571833135,-460.0,0.00016438,2]
[365271704,1749571833145,-490.0,0.00016438,2]
[365271705,1749571833156,-490.0,0.00016438,2]
[365271706,1749571833166,-460.0,0.00016438,2]
[365271707,1749571833176,-178.41,0.00016438,2]
[365271708,1749571833186,-460.0,0.00016438,2]
[365271709,1749571833197,-490.0,0.00016438,2]
[365271710,1749571833208,-490.0,0.00016438,2]
[365271711,1749571833219,-490.0,0.00016438,2]
[365271712,1749571833229,-490.0,0.00016438,2]
[365271713,1749571833239,-490.0,0.00016438,2]
[365271714,1749571833248,-460.0,0.00016438,2]
[365271715,1749571833258,-460.0,0.00016438,2]
[365271716,1749571833268,-490.0,0.00016438,2]
[365271717,1749571833279,-460.0,0.00016438,2]
[365271718,1749571833291,-480.0,0.00016438,2]
[365271719,1749571833307,-490.0,0.00016438,2]
[365271720,1749571833317,-490.0,0.00016438,2]
[365271721,1749571833326,-460.0,0.00016438,2]
[365271722,1749571833336,-490.0,0.00016438,2]
[365271723,1749571833345,-490.0,0.00016438,2]
[365271724,1749571833355,-1000.0,0.00016438,2]
[365271725,1749571833365,-490.0,0.00016438,2]
[365271726,1749571833374,-490.0,0.00016438,2]
[365271727,1749571833384,-490.0,0.00016438,2]
[365271728,1749571833393,-490.0,0.00016438,2]
[365271729,1749571833403,-480.0,0.00016438,2]
[365271730,1749571833413,-490.0,0.00016438,2]
[365271731,1749571833422,-490.0,0.00016438,2]
[365271732,1749571833431,-490.0,0.00016438,2]
[365271733,1749571833442,-490.0,0.00016438,2]
[365271734,1749571833452,-490.0,0.00016438,2]
[365271735,1749571833463,-490.0,0.00016438,2]
[365271736,1749571833473,-490.0,0.00016438,2]
[365271737,1749571833483,-490.0,0.00016438,2]
[365271738,1749571833493,-490.0,0.00016438,2]
[365271739,1749571833503,-480.0,0.00016438,2]
[365271740,1749571833513,-480.0,0.00016438,2]
[365271741,1749571833523,-490.0,0.00016438,2]
[365271742,1749571833532,-490.0,0.00016438,2]
[365271743,1749571833543,-480.0,0.00016438,2]
[365271744,1749571833552,-634.37,0.00016438,2]
[365271745,1749571833562,-490.0,0.00016438,2]
[365271746,1749571833572,-490.0,0.00016438,2]
[365271747,1749571833582,-490.0,0.00016438,2]
[365271748,1749571833592,-490.0,0.00016438,2]
[365271749,1749571833602,-490.0,0.00016438,2]
[365271750,1749571833611,-490.0,0.00016438,2]
[365271751,1749571833620,-490.0,0.00016438,2]
[365271752,1749571833631,-490.0,0.00016438,2]
[365271753,1749571833640,-490.0,0.00016438,2]
[365271754,1749571833650,-1025.39,0.00016438,2]
[365271755,1749571833661,-490.0,0.00016438,2]
[365271756,1749571833670,-490.0,0.00016438,2]
[365271757,1749571833680,-490.0,0.00016438,2]
[365271758,1749571833692,-490.0,0.00016438,2]
[365271759,1749571833701,-299.2500002,0.00016438,2]
[365271760,1749571833711,-490.0,0.00016438,2]
[365271761,1749571833721,-490.0,0.00016438,2]
[365271762,1749571833730,-638.0462513,0.00016438,2]
[365271763,1749571833740,-460.0,0.00016438,2]
[365271764,1749571833749,-490.0,0.00016438,2]
[365271765,1749571833759,-480.0,0.00016438,2]
[365271766,1749571833768,-480.0,0.00016438,2]
[365271767,1749571833778,-490.0,0.00016438,2]
[365271768,1749571833788,-490.0,0.00016438,2]
[365271769,1749571833797,-480.0,0.00016438,2]
[365271770,1749571833807,-490.0,0.00016438,2]
[365271771,1749571833818,-490.0,0.00016438,2]
[365271772,1749571833827,-490.0,0.00016438,2]
[365271773,1749571833837,-490.0,0.00016438,2]
[365271774,1749571833847,-480.0,0.00016438,2]
[365271775,1749571833858,-490.0,0.00016438,2]
[365271776,1749571833867,-480.0,0.00016438,2]
[365271777,1749571833877,-480.0,0.00016438,2]
[365271778,1749571833894,-480.0,0.00016438,2]
[365271779,1749571833903,-490.0,0.00016438,2]
[365271780,1749571833913,-500.86,0.00016438,2]
[365271781,1749571833923,-537.81772359,0.00016438,2]
[365271782,1749571833934,-480.0,0.00016438,2]
[365271783,1749571833944,-480.0,0.00016438,2]
[365271784,1749571833955,-179.36793841,0.00016438,2]
[365271785,1749571833965,-490.0,0.00016438,2]
[365271786,1749571833976,-420.67568755,0.00016438,2]
[365271787,1749571833986,-490.0,0.00016438,2]
[365271788,1749571833996,-490.0,0.00016438,2]
[365271789,1749571834006,-514.7,0.00016438,2]
[365271790,1749571834015,-490.0,0.00016438,2]
[365271791,1749571834026,-489.64890418,0.00016438,2]
[365271792,1749571834036,-480.0,0.00016438,2]
[365271793,1749571834045,-490.0,0.00016438,2]
[365271794,1749571834056,-480.0,0.00016438,2]
[365271795,1749571834069,-4180.26,0.00016438,2]
[365271796,1749571834079,-460.0,0.00016438,2]
[365271797,1749571834090,-490.0,0.00016438,2]
[365271798,1749571834100,-480.0,0.00016438,2]
[365271799,1749571834111,-480.0,0.00016438,2]
[365271800,1749571834120,-480.0,0.00016438,2]
[365271801,1749571834130,-555.28656708,0.00016438,2]
[365271802,1749571834140,-490.0,0.00016438,2]
[365271803,1749571834150,-480.0,0.00016438,2]
[365271804,1749571834161,-490.0,0.00016438,2]
[365271805,1749571834172,-480.0,0.00016438,2]
[365271806,1749571834182,-490.0,0.00016438,2]
[365271807,1749571834194,-480.0,0.00016438,2]
[365271808,1749571834205,-490.0,0.00016438,2]
[365271809,1749571834216,-465.95666029,0.00016438,2]
[365271810,1749571834227,-490.0,0.00016438,2]
[365271811,1749571834238,-480.0,0.00016438,2]
[365271812,1749571834248,-218.87554424,0.00016438,2]
[365271813,1749571834264,-261.12445576,0.00016438,2]
[365271814,1749571834274,-490.0,0.00016438,2]
[365271815,1749571834285,-294.95168606,0.00016438,2]
[365271816,1749571834297,-143.49843547,0.00016438,2]
[365271817,1749571834308,-490.0,0.00016438,2]